bitfinex-derivatives/quotes_ETHF0:USTF0_20250503
["timestamp","ask_amount","ask_price","bid_price","bid_amount"]
[1746268346344,2.79497,1825.4,1825.3,6.9258]
[1746268346642,6.43834687,1825.4,1825.3,6.9258]
[1746268351345,6.43834687,1825.4,1825.3,3.718]
[1746268351546,6.43834687,1825.4,1825.3,6.9258]
[1746268352146,6.43834687,1825.4,1825.3,3.718]
[1746268357951,6.43834687,1825.4,1825.3,5.3601]
[1746268358251,6.43834687,1825.4,1825.3,3.718]
[1746268362755,2.79497,1825.4,1825.3,3.718]
[1746268363256,2.79497,1825.4,1825.3,6.3092]
[1746268364352,2.79497,1825.4,1825.3,5.439]
[1746268364656,2.79497,1825.4,1825.3,3.718]
[1746268364955,6.43834687,1825.4,1825.3,3.718]
[1746268373658,1.09565,1825.0,1824.8,9.40339]
[1746268373859,1.09565,1825.0,1824.9,1.09567]
[1746268374061,1.09565,1825.0,1824.8,9.62168]
[1746268374261,1.09565,1825.0,1824.9,3.718]
[1746268374453,1.09565,1825.0,1824.9,8.718]
[1746268374657,1.09565,1825.0,1824.9,9.81367]
[1746268374962,1.09565,1825.0,1824.9,8.718]
[1746268375261,1.0956,1825.1,1824.9,9.81367]
[1746268375452,1.0956,1825.1,1824.9,4.81367]
[1746268376164,1.0956,1825.1,1825.0,1.09561]
[1746268376459,1.09561,1825.0,1824.9,4.81362]
[1746268376861,1.09561,1825.0,1824.9,7.39122]
[1746268377261,1.09559,1825.1,1825.0,1.09558]
[1746268377454,1.09559,1825.1,1825.0,2.70078]
[1746268377658,1.09559,1825.1,1825.0,7.70078]
[1746268378163,1.09559,1825.1,1825.0,11.41878]
[1746268378761,1.09559,1825.1,1825.0,6.41878]
[1746268379061,1.09559,1825.1,1825.0,6.41881]
[1746268381566,1.09553,1825.2,1825.0,6.41881]
[1746268381767,4.73890687,1825.2,1825.1,1.7017]
[1746268381967,1.09553,1825.2,1825.1,1.7017]
[1746268382164,1.09553,1825.2,1825.1,2.42035465]
[1746268382369,1.09553,1825.2,1825.1,0.71865465]
[1746268382569,1.09553,1825.2,1825.1,1.81420465]
[1746268384464,1.09536,1825.5,1825.4,1.09535]
[1746268384664,8.22449681,1825.5,1825.4,1.09535]
[1746268384964,8.22449681,1825.5,1825.4,1.81400465]
[1746268385165,8.22449681,1825.5,1825.4,5.53200465]
[1746268385561,5.48323681,1825.5,1825.4,5.53200465]
[1746268386167,5.48323681,1825.5,1825.4,7.19670465]
[1746268386468,5.48323681,1825.5,1825.4,15.72270465]
[1746268387165,5.48323681,1825.5,1825.4,10.72270465]
[1746268387671,5.48323681,1825.5,1825.4,15.50440465]
[1746268387972,5.48323681,1825.5,1825.4,20.50440465]
[1746268388461,1.09519,1825.8,1825.7,1.09519]
[1746268388863,2.84189,1825.8,1825.7,1.09519]
[1746268389066,2.84189,1825.8,1825.7,6.50669]
[1746268389265,2.84189,1825.8,1825.7,6.13015465]
[1746268389971,2.84189,1825.8,1825.7,46.93015465]
[1746268391665,9.69306687,1825.8,1825.7,4.43665465]
[1746268391972,15.53376687,1825.8,1825.7,3.718]
[1746268393468,1.09537,1825.4,1825.3,7.29979209]
[1746268393675,7.94654687,1825.4,1825.3,7.29979209]
[1746268394272,7.94654687,1825.4,1825.3,11.01779209]
[1746268395369,7.94654687,1825.4,1825.3,3.718]
[1746268396674,10.47634687,1825.4,1825.3,3.718]
[1746268397471,3.2078,1825.1,1824.5,7.29979209]
[1746268397776,7.94702687,1824.6,1824.5,7.29979209]
[1746268397970,11.47102687,1824.6,1824.5,7.29979209]
[1746268398274,11.47102687,1824.6,1824.5,11.01779209]
[1746268398669,13.17442687,1824.6,1824.5,11.01779209]
[1746268399671,9.96662687,1824.6,1824.5,11.01779209]
[1746268399875,0.44687894,1825.0,1824.5,11.01779209]
[1746268399876,3.2078,1825.0,1824.5,19.22559209]
[1746268400079,3.2078,1825.0,1824.6,2.80243]
[1746268400080,1.7095,1824.9,1824.6,2.80243]
[1746268400376,1.09573,1824.8,1824.7,1.7066]
[1746268400564,2.80522,1824.9,1824.7,1.7066]
[1746268401162,2.80522,1824.9,1824.7,5.4246]
[1746268401570,1.09565,1825.0,1824.8,1.7066]
[1746268401776,4.30342,1825.0,1824.8,2.80231]
[1746268402072,4.30342,1825.0,1824.9,0.8044]
[1746268402273,4.30342,1825.0,1824.9,2.511]
[1746268403174,4.30342,1825.0,1824.9,6.229]
[1746268403577,4.30342,1825.0,1824.9,5.4246]
[1746268403769,5.93262,1825.0,1824.9,3.718]
[1746268405776,2.72482,1825.0,1824.9,3.718]
[1746268407677,2.72482,1825.0,1824.9,6.47757]
[1746268408073,1.6292,1825.0,1824.9,6.47757]
[1746268408379,1.09561,1825.0,1824.9,6.47757]
[1746268408581,4.3034,1825.1,1825.0,1.09561]
[1746268408778,7.94677687,1825.1,1825.0,3.56161]
[1746268409073,7.94677687,1825.1,1825.0,7.27961]
[1746268409881,4.73897687,1825.1,1825.0,7.27961]
[1746268410277,3.64337687,1825.1,1825.0,6.184]
[1746268410470,6.91573,1825.2,1825.1,1.09555]
[1746268410677,9.69900687,1825.2,1825.1,2.79975]
[1746268410980,1.09547,1825.3,1825.2,1.09549]
[1746268411180,1.09547,1825.3,1825.2,2.79969]
[1746268412281,1.09547,1825.3,1825.2,6.51769]
[1746268412883,1.09547,1825.3,1825.2,5.4222]
[1746268413071,2.72647,1825.3,1825.2,5.4222]
[1746268415484,2.72647,1825.3,1825.2,6.51769]
[1746268415685,4.39928228,1825.4,1825.3,1.09543]
[1746268415878,8.04265915,1825.4,1825.3,2.4158]
[1746268416079,9.71305915,1825.4,1825.3,3.51123]
[1746268416286,9.71305915,1825.4,1825.3,7.22923]
[1746268417180,6.94723915,1825.4,1825.3,7.22923]
[1746268417385,3.73943915,1825.4,1825.3,7.22923]
[1746268417787,0.09606228,1825.4,1825.3,7.22923]
[1746268418287,0.09606228,1825.4,1825.3,8.03443]
[1746268418488,3.2078,1825.6,1825.5,1.09531]
[1746268418884,3.2078,1825.6,1825.5,4.61931]
[1746268419181,1.09524,1825.7,1825.6,1.09525]
[1746268419387,1.09524,1825.7,1825.6,3.65095]
[1746268420584,7.14873681,1825.9,1825.6,2.5557]
[1746268420881,3.64337687,1825.8,1825.7,2.79743]
[1746268421187,1.09513,1825.8,1825.7,5.7355]
[1746268421391,1.09513,1825.8,1825.7,2.5277]
[1746268421688,2.74813,1825.8,1825.7,2.5277]
[1746268421888,6.39150687,1825.8,1825.7,43.3277]
[1746268422084,6.39150687,1825.8,1825.7,5.4203]
[1746268422290,6.39150687,1825.8,1825.7,3.718]
[1746268424398,14.59930687,1825.8,1825.7,3.718]
[1746268424693,2.73814,1825.6,1825.2,9.42517]
[1746268424891,4.73878687,1825.4,1825.3,40.8]
[1746268425094,4.73880687,1825.3,1825.2,3.548]
[1746268426202,4.73880687,1825.3,1825.2,7.266]
[1746268428004,6.43990687,1825.3,1825.2,7.266]
[1746268429903,1.6124,1825.5,1825.2,8.36149]
[1746268430211,1.6124,1825.5,1825.3,1.09539]
[1746268430212,1.09537,1825.4,1825.3,1.09539]
[1746268430403,1.09537,1825.4,1825.3,2.67859]
[1746268431210,1.09537,1825.4,1825.3,6.39659]
[1746268432006,2.79367,1825.4,1825.3,6.39659]
[1746268432610,5.48323681,1825.9,1825.4,9.09]
[1746268432808,9.14149925,1826.1,1826.0,1.09501]
[1746268433004,9.14149925,1826.1,1826.0,8.26993731]
[1746268433208,9.14149925,1826.1,1826.0,57.78793731]
[1746268433612,9.14149925,1826.1,1826.0,60.22643731]
[1746268434015,7.27811652,1826.3,1826.1,1.09495]
[1746268434201,7.27811652,1826.3,1826.2,5.92939]
[1746268435208,7.27811652,1826.3,1826.2,9.64739]
[1746268436409,7.55201408,1826.3,1826.2,9.64739]
[1746268438416,6.40200687,1826.3,1826.2,6.9258]
[1746268439608,6.40200687,1826.3,1826.2,3.718]
[1746268439609,11.40200687,1826.3,1826.2,3.718]
[1746268439816,14.60980687,1826.3,1826.2,3.718]
[1746268440215,1.36884756,1826.1,1826.0,3.718]
[1746268440611,4.73832687,1826.1,1826.0,3.718]
[1746268442715,3.64337687,1826.1,1826.0,4.81301]
[1746268442915,4.73832687,1826.1,1826.0,3.718]
[1746268445421,0.27389756,1826.1,1826.0,4.81301]
[1746268445718,5.14549756,1826.3,1826.1,1.09495]
[1746268445918,4.46436931,1826.2,1826.1,1.7503]
[1746268446120,4.46436931,1826.2,1826.1,2.84525]
[1746268446522,4.46436931,1826.2,1826.1,1.7503]
[1746268447019,6.21216931,1826.2,1826.1,1.7503]
[1746268447220,6.21216931,1826.2,1826.1,2.84525]
[1746268448122,6.48606687,1826.2,1826.1,2.84525]
[1746268448311,6.48606687,1826.2,1826.1,1.7503]
[1746268449521,1.09495,1826.1,1826.0,3.718]
[1746268449819,2.95074756,1826.1,1826.0,3.718]
[1746268450021,6.32022687,1826.1,1826.0,3.718]
[1746268450410,6.32022687,1826.1,1826.0,4.813]
[1746268450615,6.32022687,1826.1,1826.0,3.718]
[1746268451322,6.32022687,1826.1,1826.0,5.3722]
[1746268451625,6.32022687,1826.1,1826.0,3.718]
[1746268454319,11.32022687,1826.1,1826.0,3.718]
[1746268454619,14.52802687,1826.1,1826.0,3.718]
[1746268455021,1.09519,1825.7,1825.6,40.8]
[1746268455221,1.09525,1825.6,1825.5,3.2078]
[1746268455416,6.91437687,1825.6,1825.5,4.30311]
[1746268455621,8.00962687,1825.6,1825.5,44.0078]
[1746268456022,8.00962687,1825.6,1825.5,3.2078]
[1746268456223,6.09807687,1825.6,1825.5,8.02111]
[1746268456422,7.19332687,1825.6,1825.5,9.77481]
[1746268457128,7.19332687,1825.6,1825.5,8.6795]
[1746268457426,7.19332687,1825.6,1825.5,3.718]
[1746268458525,7.19332687,1825.6,1825.5,4.81331]
[1746268458526,6.09807687,1825.6,1825.5,4.81331]
[1746268458721,2.73125,1825.6,1825.5,6.48941]
[1746268458922,1.636,1825.6,1825.5,9.69721]
[1746268459330,1.36911756,1825.7,1825.6,1.09525]
[1746268459523,4.73859687,1825.7,1825.6,2.77135]
[1746268459725,4.73859687,1825.7,1825.6,1.6761]
[1746268460029,1.36911756,1825.7,1825.6,2.77135]
[1746268460529,3.88336756,1825.8,1825.6,2.77135]
[1746268460732,3.88336756,1825.8,1825.7,1.6761]
[1746268460923,7.25284687,1825.8,1825.7,1.6761]
[1746268461120,7.25284687,1825.8,1825.7,5.3941]
[1746268462631,3.88336756,1825.8,1825.7,5.3941]
[1746268462824,7.25284687,1825.8,1825.7,5.3941]
[1746268463632,3.36947931,1825.8,1825.7,6.48929]
[1746268465332,3.36947931,1825.8,1825.7,10.12929]
[1746268467935,2.23704756,1826.0,1825.7,9.0341]
[1746268468134,5.60652687,1826.0,1825.9,1.09507]
[1746268468631,7.29412687,1826.0,1825.9,1.09507]
[1746268468829,7.29412687,1826.0,1825.9,2.84147]
[1746268469128,7.29412687,1826.0,1825.9,6.55947]
[1746268469335,7.29412687,1826.0,1825.9,5.4644]
[1746268470733,7.29412687,1826.0,1825.9,6.55947]
[1746268471133,3.05654756,1826.0,1825.9,6.55947]
[1746268471633,1.96149756,1826.0,1825.9,6.55947]
[1746268472933,3.05650756,1826.0,1825.9,6.55947]
[1746268473632,1.96149756,1826.0,1825.9,6.55947]
[1746268473934,1.36885756,1826.1,1826.0,1.09501]
[1746268474132,4.73833687,1826.1,1826.0,7.30681]
[1746268474335,2.66889756,1826.2,1826.1,1.09495]
[1746268474535,6.03837687,1826.2,1826.1,2.79525]
[1746268475230,5.76447931,1826.2,1826.1,2.79525]
[1746268475437,4.96167931,1826.2,1826.1,2.79525]
[1746268475631,0.27389756,1826.4,1826.1,4.9081]
[1746268475835,5.23557687,1826.4,1826.3,1.09483]
[1746268476237,6.33034687,1826.4,1826.3,2.80093]
[1746268477137,5.23557687,1826.4,1826.3,6.51893]
[1746268477338,8.64635582,1826.7,1826.6,1.09465]
[1746268477533,13.44611513,1826.7,1826.6,1.09465]
[1746268478826,6.16827687,1826.7,1826.6,1.09465]
[1746268480740,6.16827687,1826.7,1826.6,4.73465]
[1746268480741,0.27389756,1826.7,1826.6,4.73465]
[1746268480933,4.30223,1827.0,1826.6,4.73465]
[1746268480934,0.27389756,1826.9,1826.8,1.09453]
[1746268481133,0.27389756,1826.9,1826.8,4.81253]
[1746268481338,5.25827687,1826.9,1826.8,4.81253]
[1746268482336,6.11587687,1826.9,1826.8,4.81253]
[1746268483740,7.21034687,1826.9,1826.8,4.81253]
[1746268485134,6.11587687,1826.9,1826.8,4.81253]
[1746268485334,7.21034687,1826.9,1826.8,4.81253]
[1746268487234,7.21034687,1826.9,1826.8,3.718]
[1746268488634,7.21034687,1826.9,1826.8,4.81253]
[1746268489133,7.21034687,1826.9,1826.8,3.718]
[1746268490333,12.21034687,1826.9,1826.8,3.718]
[1746268490534,7.21034687,1826.9,1826.8,3.718]
[1746268490740,10.41814687,1826.9,1826.8,3.718]
[1746268494345,1.09471,1826.5,1826.4,4.71174]
[1746268495143,1.09471,1826.5,1826.4,7.335]
[1746268495344,4.46418931,1826.5,1826.4,3.718]
[1746268495547,6.48648687,1826.5,1826.4,3.718]
[1746268497043,6.21258931,1826.5,1826.4,3.718]
[1746268498353,5.11787931,1826.5,1826.4,4.81277]
[1746268498646,4.46418931,1826.5,1826.4,4.81277]
[1746268498951,3.36947931,1826.5,1826.4,4.81277]
[1746268499145,1.89307,1826.6,1826.5,1.09471]
[1746268499346,6.99934931,1826.6,1826.5,2.76001]
[1746268499955,6.99934931,1826.6,1826.5,1.6653]
[1746268500246,1.09471,1826.5,1826.4,1.95312]
[1746268500448,2.73441,1826.5,1826.4,1.95312]
[1746268500638,2.73441,1826.5,1826.4,1.09472]
[1746268501149,1.09477,1826.4,1826.3,3.2078]
[1746268501348,6.10394931,1826.4,1826.3,3.2078]
[1746268501544,3.00836756,1826.4,1826.3,4.30263]
[1746268501847,1.6397,1826.4,1826.3,4.30263]
[1746268502049,2.73447,1826.4,1826.3,5.92253]
[1746268502245,2.73447,1826.4,1826.3,9.64053]
[1746268502751,1.6397,1826.4,1826.3,9.64053]
[1746268504649,2.73447,1826.4,1826.3,9.64053]
[1746268505450,1.6397,1826.4,1826.3,9.64053]
[1746268505650,1.6397,1826.4,1826.3,10.50153]
[1746268505851,5.00917931,1826.4,1826.3,10.50153]
[1746268506247,1.6397,1826.4,1826.3,10.50153]
[1746268506550,0.7984,1826.6,1826.5,1.09471]
[1746268506551,1.89309,1826.6,1826.5,1.09471]
[1746268506750,3.52239,1826.6,1826.5,1.09471]
[1746268506951,6.89186931,1826.6,1826.5,1.09471]
[1746268507153,6.89186931,1826.6,1826.5,6.45671]
[1746268508646,7.16576687,1826.6,1826.5,6.45671]
[1746268508845,1.09469,1826.6,1826.5,6.45671]
[1746268509445,1.36858756,1826.6,1826.5,6.45671]
[1746268510156,1.36858756,1826.6,1826.5,5.362]
[1746268510752,4.46416931,1826.6,1826.5,6.45671]
[1746268511051,4.73806687,1826.6,1826.5,6.45671]
[1746268511254,4.46416931,1826.6,1826.5,6.45671]
[1746268511753,4.46416931,1826.6,1826.5,5.362]
[1746268512653,4.73806687,1826.6,1826.5,5.362]
[1746268513843,4.73806687,1826.6,1826.5,6.45671]
[1746268514454,4.73806687,1826.6,1826.5,5.362]
[1746268515255,6.44806687,1826.6,1826.5,3.718]
[1746268515954,11.44806687,1826.6,1826.5,3.718]
[1746268517253,1.09483,1826.3,1826.2,3.617]
[1746268517454,4.46430931,1826.3,1826.2,3.617]
[1746268518048,4.46430931,1826.3,1826.2,5.2193]
[1746268518346,4.46430931,1826.3,1826.2,8.9373]
[1746268519358,4.73820687,1826.3,1826.2,8.9373]
[1746268519655,1.36868756,1826.4,1826.3,1.09483]
[1746268519849,1.36868756,1826.4,1826.3,1.6773]
[1746268520158,1.36868756,1826.4,1826.3,5.3953]
[1746268521854,1.36868756,1826.4,1826.3,6.49013]
[1746268522358,1.09479,1826.4,1826.3,6.49013]
[1746268522651,1.36868756,1826.4,1826.3,6.49013]
[1746268525463,1.36868756,1826.4,1826.3,5.3953]
[1746268527568,6.36186687,1826.4,1826.3,5.3953]
[1746268527971,6.36186687,1826.4,1826.3,3.718]
[1746268540080,0.27389756,1826.2,1825.8,40.8]
[1746268540282,1.09507,1825.9,1825.8,40.8]
[1746268540780,4.46637,1825.9,1825.8,40.8]
[1746268541280,4.46637,1825.9,1825.8,44.518]
[1746268541881,8.10974687,1825.9,1825.8,44.518]
[1746268542780,8.10974687,1825.9,1825.8,3.718]
[1746268550780,1.09531,1825.5,1825.4,4.4604]
[1746268550981,1.09531,1825.5,1825.4,5.2955]
[1746268551179,1.09531,1825.5,1825.4,51.4712]
[1746268552083,1.09531,1825.5,1825.4,47.8842]
[1746268552283,2.76211,1825.5,1825.4,47.8842]
[1746268556682,2.76211,1825.5,1825.4,44.518]
[1746268556886,7.25438687,1825.5,1825.4,3.718]
[1746268559381,7.25438687,1825.5,1825.4,5.38]
[1746268559992,4.73868687,1825.5,1825.4,5.38]
[1746268560193,4.73868687,1825.5,1825.4,6.2198]
[1746268560598,1.36920756,1825.5,1825.4,6.2198]
[1746268560796,1.08319756,1825.7,1825.5,1.09525]
[1746268561089,1.36908756,1825.7,1825.6,1.662]
[1746268561297,1.36908756,1825.7,1825.6,2.4647]
[1746268561496,1.36914756,1825.6,1825.5,3.718]
[1746268561696,4.73862687,1825.6,1825.5,3.718]
[1746268561996,6.33912687,1825.6,1825.5,5.3532]
[1746268562791,6.33912687,1825.6,1825.5,3.718]
[1746268564297,9.54692687,1825.6,1825.5,3.718]
[1746268564690,10.37662687,1825.6,1825.5,3.718]
[1746268565197,1.09549,1825.2,1825.1,1.6352]
[1746268565397,4.46496931,1825.2,1825.1,1.6352]
[1746268565597,4.73886687,1825.2,1825.1,42.4352]
[1746268565898,4.73886687,1825.2,1825.1,1.6352]
[1746268566086,6.43116687,1825.2,1825.1,1.6352]
[1746268566691,9.63896687,1825.2,1825.1,1.6352]
[1746268567896,1.36944756,1825.1,1825.0,44.518]
[1746268568098,3.89434756,1825.1,1825.0,44.518]
[1746268568500,3.89434756,1825.1,1825.0,46.2023]
[1746268574505,3.89434756,1825.1,1825.0,44.518]
[1746268574900,7.26382687,1825.1,1825.0,3.718]
[1746268576107,7.26382687,1825.1,1824.7,1.6139]
[1746268576108,1.09573,1824.8,1824.7,1.6139]
[1746268576407,1.36962756,1824.8,1824.7,1.6139]
[1746268576608,1.36962756,1824.8,1824.7,3.3252]
[1746268576803,3.08352756,1824.8,1824.7,3.3252]
[1746268577111,3.08352756,1824.8,1824.7,7.0432]
[1746268577406,6.45300687,1824.8,1824.7,5.4293]
[1746268577705,6.45300687,1824.8,1824.7,3.718]
[1746268584014,9.66080687,1824.8,1824.7,3.718]
[1746268584901,6.45300687,1824.8,1824.7,3.718]
[1746268585300,9.66080687,1824.8,1824.7,3.718]
[1746268587214,9.66080687,1824.8,1824.4,1.6705]
[1746268587215,1.09591,1824.5,1824.4,1.6705]
[1746268587513,3.36947931,1824.5,1824.1,3.58673]
[1746268587811,1.09601,1824.4,1824.2,46.72309]
[1746268588006,1.09601,1824.4,1824.3,1.6192]
[1746268591211,3.57331,1824.7,1824.3,6.6192]
[1746268591212,0.8338,1824.7,1824.3,6.6192]
[1746268591420,1.09586,1824.6,1824.4,4.8217]
[1746268591612,1.09586,1824.6,1824.5,1.6068]
[1746268592615,1.09586,1824.6,1824.5,2.70271]
[1746268593820,1.09586,1824.6,1824.5,1.6068]
[1746268594517,1.09586,1824.6,1824.5,2.70271]
[1746268594718,3.48169756,1824.8,1824.5,1.6068]
[1746268594919,1.09585,1824.7,1824.6,1.6984]
[1746268601122,4.46532931,1824.7,1824.6,1.6984]
[1746268601420,6.43692687,1824.7,1824.6,1.6984]
[1746268601616,1.09591,1824.5,1824.4,5.91763]
[1746268602011,4.46538931,1824.5,1824.4,4.8217]
[1746268602216,5.32878931,1824.5,1824.4,3.2078]
[1746268602417,5.60268687,1824.5,1824.4,3.2078]
[1746268602823,7.30038687,1824.5,1824.4,3.2078]
[1746268603833,7.02648931,1824.5,1824.4,3.2078]
[1746268604026,6.16308931,1824.5,1824.4,3.2078]
[1746268604217,6.16308931,1824.5,1824.4,6.5489]
[1746268605024,6.16308931,1824.5,1824.4,3.3411]
[1746268605223,6.43698687,1824.5,1824.4,3.3411]
[1746268605522,1.09591,1824.5,1824.4,4.43707]
[1746268605722,1.36979756,1824.6,1824.4,4.43707]
[1746268605918,1.36979756,1824.6,1824.5,1.6508]
[1746268606310,1.09591,1824.5,1824.4,1.6903]
[1746268606516,4.46538931,1824.5,1824.4,1.6903]
[1746268606716,6.98218931,1824.5,1824.4,1.6903]
[1746268607026,1.09597,1824.4,1824.3,1.6508]
[1746268607324,6.12724931,1824.4,1824.3,1.6508]
[1746268608325,1.09603,1824.3,1824.2,47.5508]
[1746268608518,6.12730931,1824.3,1824.2,47.5508]
[1746268608717,2.75783,1824.3,1824.2,49.1713]
[1746268611030,2.75783,1824.3,1824.2,50.26739]
[1746268611225,1.09603,1824.3,1824.2,50.26739]
[1746268612829,1.09603,1824.4,1824.3,1.09602]
[1746268613031,1.09603,1824.4,1824.3,4.41052]
[1746268614918,1.36992756,1824.4,1824.3,4.41052]
[1746268615834,1.36992756,1824.4,1824.3,3.3145]
[1746268616132,4.73940687,1824.4,1824.3,1.6188]
[1746268616325,5.53680687,1824.4,1824.3,1.6188]
[1746268617425,1.36992756,1824.3,1824.2,48.64687]
[1746268617631,4.73940687,1824.3,1824.2,48.64687]
[1746268617829,3.94212756,1824.3,1824.2,48.64687]
[1746268618331,3.66823,1824.3,1824.2,48.64687]
[1746268618530,1.09603,1824.3,1824.2,48.64687]
[1746268620026,6.15700931,1824.3,1824.2,47.5508]
[1746268621132,6.15700931,1824.3,1824.2,6.7508]
[1746268621933,0.27389756,1824.1,1824.0,3.2078]
[1746268622135,1.09621,1824.0,1823.9,2.84374]
[1746268622336,6.15718931,1824.0,1823.9,2.84374]
[1746268622636,2.78771,1824.0,1823.9,43.64374]
[1746268622832,2.78771,1824.0,1823.9,42.5475]
[1746268623237,6.43108687,1824.0,1823.9,40.8]
[1746268624026,6.43108687,1824.0,1823.9,41.89627]
[1746268626137,6.43108687,1824.0,1823.9,43.58417]
[1746268626732,6.43108687,1824.0,1823.9,46.79197]
[1746268631040,6.43108687,1824.0,1823.9,44.0078]
[1746268631247,6.43108687,1824.0,1823.9,3.2078]
[1746268632043,0.27389756,1823.8,1823.6,7.29979209]
[1746268632339,6.35246687,1823.7,1823.6,8.39624209]
[1746268632540,6.35246687,1823.7,1823.6,50.78524209]
[1746268632734,6.35246687,1823.7,1823.6,51.59384209]
[1746268633132,3.36947931,1823.7,1823.6,51.59384209]
[1746268633338,1.12539756,1823.9,1823.8,1.09633]
[1746268633339,0.27389756,1823.9,1823.8,1.09633]
[1746268633535,3.54636,1824.0,1823.9,1.09627]
[1746268633740,7.18973687,1824.0,1823.9,3.48787]
[1746268633930,6.91583931,1824.0,1823.9,3.48787]
[1746268634331,6.91583931,1824.0,1823.9,2.3916]
[1746268634735,7.18973687,1824.0,1823.9,2.3916]
[1746268636040,6.91583931,1824.0,1823.9,2.3916]
[1746268637645,6.91583931,1824.0,1823.9,3.48787]
[1746268637839,2.70896,1824.0,1823.9,3.48787]
[1746268638844,2.70896,1824.0,1823.9,6.69567]
[1746268639044,1.6127,1824.0,1823.9,6.69567]
[1746268639241,2.70891,1824.0,1823.9,6.69567]
[1746268640443,2.70891,1824.0,1823.9,5.5994]
[1746268640444,2.98280756,1824.0,1823.9,5.5994]
[1746268640641,2.98280756,1824.0,1823.9,3.2078]
[1746268640839,6.35228687,1824.0,1823.9,3.2078]
[1746268643941,6.35228687,1824.0,1823.9,4.8083]
[1746268644141,6.35228687,1824.0,1823.9,3.2078]
[1746268649048,6.35228687,1824.0,1823.9,4.30407]
[1746268649250,2.70891,1824.0,1823.9,4.30407]
[1746268649450,2.70891,1824.0,1823.9,5.88677]
[1746268649748,2.98280756,1824.0,1823.9,3.2078]
[1746268651054,6.35228687,1824.0,1823.9,3.2078]
[1746268651541,6.07838931,1824.0,1823.9,3.2078]
[1746268652149,6.35228687,1824.0,1823.9,3.2078]
[1746268654350,6.07838931,1824.0,1823.9,3.2078]
[1746268654952,6.35228687,1824.0,1823.9,3.2078]
[1746268655339,1.09627,1823.9,1823.8,3.544]
[1746268655545,7.31154687,1823.9,1823.8,3.544]
[1746268655852,1.09633,1823.8,1823.7,3.2078]
[1746268656045,6.99440931,1823.8,1823.7,3.2078]
[1746268656842,6.99440931,1823.8,1823.7,4.30419]
[1746268657042,6.99440931,1823.8,1823.7,3.2078]
[1746268657348,7.26830687,1823.8,1823.7,3.2078]
[1746268657546,7.26830687,1823.8,1823.7,4.30419]
[1746268658055,7.26830687,1823.8,1823.7,3.2078]
[1746268660763,7.26830687,1823.8,1823.7,4.30419]
[1746268662557,3.36947931,1823.8,1823.7,4.30419]
[1746268663258,1.37018756,1823.9,1823.8,1.09633]
[1746268663451,0.27389756,1823.9,1823.8,4.43313]
[1746268663957,1.09627,1823.9,1823.8,4.43313]
[1746268668662,1.37016756,1823.9,1823.8,4.43313]
[1746268669763,1.09627,1823.9,1823.8,4.43313]
[1746268669957,1.37016756,1823.9,1823.8,4.43313]
[1746268670365,1.09627,1823.9,1823.8,4.43313]
[1746268670965,1.37016756,1823.9,1823.8,4.43313]
[1746268671266,1.37016756,1823.9,1823.8,3.3368]
[1746268671667,1.37022756,1823.8,1823.7,3.2078]
[1746268671860,8.15650687,1823.8,1823.7,4.30419]
[1746268672059,8.15650687,1823.8,1823.7,6.04199]
[1746268673673,8.15650687,1823.8,1823.7,2.83419]
[1746268673858,8.15650687,1823.8,1823.7,6.04199]
[1746268677667,8.15650687,1823.8,1823.7,2.83419]
[1746268677875,8.15650687,1823.8,1823.7,6.04199]
[1746268678577,8.15650687,1823.8,1823.7,2.83419]
[1746268678769,8.15650687,1823.8,1823.7,6.04199]
[1746268680181,8.15650687,1823.8,1823.7,4.9456]
[1746268680377,8.15650687,1823.8,1823.7,3.2078]
[1746268685181,1.09639,1823.7,1823.6,1.09645]
[1746268685382,6.09566931,1823.7,1823.6,4.30425]
[1746268685583,2.72619,1823.7,1823.6,4.30425]
[1746268686183,3.00008756,1823.7,1823.6,4.30425]
[1746268686376,1.6298,1823.7,1823.6,1.09645]
[1746268686576,1.6298,1823.7,1823.6,2.84635]
[1746268687085,1.6298,1823.7,1823.6,6.05415]
[1746268687273,2.72619,1823.7,1823.6,6.05415]
[1746268687478,6.09566931,1823.7,1823.6,6.05415]
[1746268687782,6.36956687,1823.7,1823.6,3.2078]
[1746268689581,6.09566931,1823.7,1823.6,4.30425]
[1746268689983,6.36956687,1823.7,1823.6,4.30425]
[1746268690386,6.09566931,1823.7,1823.6,4.30425]
[1746268690986,6.36956687,1823.7,1823.6,4.30425]
[1746268694382,6.09566931,1823.7,1823.6,4.30425]
[1746268694589,6.09566931,1823.7,1823.6,5.94795]
[1746268695088,6.36956687,1823.7,1823.6,5.94795]
[1746268696086,6.36401207,1823.7,1823.6,5.94795]
[1746268697388,1.13779756,1823.8,1823.7,1.09639]
[1746268697589,5.45740893,1824.0,1823.7,1.09639]
[1746268697590,0.27389756,1823.9,1823.8,1.09633]
[1746268697789,0.27389756,1823.9,1823.8,8.63873]
[1746268698282,7.63942649,1824.0,1823.9,1.09627]
[1746268698482,7.63942649,1824.0,1823.9,2.81287]
[1746268699288,9.37092649,1824.0,1823.9,2.81287]
[1746268699482,9.37092649,1824.0,1823.9,1.7166]
[1746268699789,12.7404058,1824.0,1823.9,1.7166]
[1746268699991,7.28299687,1824.0,1823.9,1.7166]
[1746268703589,7.28299687,1824.0,1823.9,42.5166]
[1746268704092,1.13109756,1824.1,1823.9,43.61283]
[1746268704391,2.22724756,1824.1,1824.0,1.6953]
[1746268704689,3.82704756,1824.1,1824.0,1.6953]
[1746268704886,7.19652687,1824.1,1824.0,1.6953]
[1746268705285,1.37010756,1824.0,1823.9,40.8]
[1746268705489,6.42948687,1824.0,1823.9,40.8]
[1746268705990,6.42948687,1824.0,1823.9,42.5316]
[1746268706184,6.42948687,1824.0,1823.9,43.25155657]
[1746268706379,6.42948687,1824.0,1823.9,43.25153382]
[1746268706893,6.42948687,1824.0,1823.9,2.45153382]
[1746268707888,6.42948687,1824.0,1823.9,0.71993382]